bitfinex-derivatives/quotes_SOLF0:USTF0_20250909
["timestamp","ask_amount","ask_price","bid_price","bid_amount"]
[1757391729736,7.24,215.38,215.25,3.95129196]
[1757391729935,7.24,215.36,215.26,3.95129196]
[1757391730140,7.24,215.36,215.27,3.95129196]
[1757391730335,1.33696029,215.35,215.28,5.28825225]
[1757391730530,1.33696029,215.35,215.29,3.95129196]
[1757391730836,1.33696029,215.35,215.3,3.95129196]
[1757391731136,1.33696029,215.35,215.31,3.95129196]
[1757391731336,1.33696029,215.35,215.32,3.95129196]
[1757391731546,7.24,215.39,215.33,5.28718861]
[1757391731734,27.77696029,215.41,215.34,3.95022832]
[1757391731935,7.24,215.38,215.33,1.33696029]
[1757391732242,7.24,215.38,215.27,0.31]
[1757391732243,7.24,215.38,215.31,1.33696029]
[1757391732539,7.24,215.38,215.32,3.9497019]
[1757391732740,7.24,215.38,215.33,3.9497019]
[1757391733043,1.33696029,215.39,215.34,3.94954657]
[1757391733245,1.33696029,215.39,215.31,1.33696029]
[1757391733440,7.12,215.38,215.32,3.94930917]
[1757391733741,7.12,215.38,215.33,3.94930917]
[1757391733938,7.12,215.38,215.33,1.66696029]
[1757391734144,7.12,215.38,215.34,3.94873041]
[1757391734442,59.85696029,215.41,215.35,3.94873041]
[1757391734640,7.12,215.4,215.36,3.94873041]
[1757391734941,7.12,215.4,215.33,1.66696029]
[1757391735142,7.12,215.4,215.35,1.33696029]
[1757391735336,7.12,215.4,215.36,3.94736138]
[1757391735542,7.12,215.44,215.37,3.94647067]
[1757391735749,8.45696029,215.44,215.37,1.33696029]
[1757391736044,8.45696029,215.44,215.38,3.94596427]
[1757391736338,8.45696029,215.44,215.37,1.33696029]
[1757391737645,8.45696029,215.44,215.34,0.33]
[1757391737945,8.45696029,215.44,215.36,1.33696029]
[1757391738142,8.45696029,215.44,215.37,3.94521419]
[1757391738345,8.45696029,215.44,215.36,1.33696029]
[1757391738849,40.18,215.46,215.33,1.33696029]
[1757391738850,7.12,215.41,215.33,1.33696029]
[1757391739148,7.12,215.41,215.34,3.94571997]
[1757391739350,7.12,215.41,215.35,3.94571997]
[1757391739535,7.12,215.41,215.36,3.94571997]
[1757391739742,7.12,215.47,215.35,1.33696029]
[1757391739944,7.12,215.47,215.39,1.33696029]
[1757391739945,1.33696029,215.46,215.39,1.33696029]
[1757391740139,5.23943951,215.52,215.41,1.33696029]
[1757391740339,5.23943951,215.55,215.43,0.33]
[1757391740543,1.33696029,215.57,215.44,3.93713879]
[1757391740741,8.45696029,215.53,215.45,5.27409908]
[1757391740943,8.45696029,215.53,215.46,3.93713879]
[1757391741143,8.45696029,215.53,215.43,1.66696029]
[1757391741345,8.45696029,215.53,215.44,3.93596101]
[1757391741541,7.12,215.53,215.45,3.93596101]
[1757391741742,1.33696029,215.52,215.44,1.33696029]
[1757391741944,1.33696029,215.52,215.45,3.93625272]
[1757391742140,7.12,215.53,215.44,1.33696029]
[1757391742346,1.33696029,215.52,215.44,1.33696029]
[1757391743456,7.12,215.53,215.43,0.33]
[1757391743457,1.33696029,215.5,215.43,0.33]
[1757391744256,1.33696029,215.5,215.42,1.33696029]
[1757391744257,7.12,215.49,215.42,1.33696029]
[1757391745451,1.33696029,215.48,215.42,1.33696029]
[1757391745651,8.45696029,215.46,215.38,1.66696029]
[1757391745851,7.12,215.46,215.41,1.33696029]
[1757391746159,8.45696029,215.47,215.41,1.33696029]
[1757391746559,8.45696029,215.47,215.39,1.33696029]
[1757391746855,1.33696029,215.45,215.39,1.33696029]
[1757391747060,7.12,215.47,215.41,1.33696029]
[1757391747452,1.33696029,215.51,215.43,1.33696029]
[1757391747752,1.33696029,215.51,215.45,1.33696029]
[1757391748157,1.33696029,215.51,215.43,1.33696029]
[1757391748357,7.12,215.52,215.41,0.33]
[1757391749770,7.12,215.52,215.35,0.33]
[1757391750070,7.12,215.49,215.38,2.08612829]
[1757391750466,7.12,215.49,215.35,2.41612829]
[1757391750970,7.12,215.49,215.38,2.08612829]
[1757391751162,17.36,215.49,215.38,2.08612829]
[1757391751466,7.12,215.49,215.41,2.08612829]
[1757391752164,7.12,215.49,215.39,0.33]
[1757391752666,9.20612829,215.49,215.35,2.41612829]
[1757391752869,9.20612829,215.49,215.36,3.93166206]
[1757391753070,9.20612829,215.49,215.35,2.41612829]
[1757391753257,9.20612829,215.49,215.36,3.93173686]
[1757391753462,9.20612829,215.49,215.37,3.93173686]
[1757391753662,9.20612829,215.49,215.35,2.41612829]
[1757391753861,22.62612829,215.49,215.37,0.33]
[1757391754368,20.54,215.49,215.34,0.1996]
[1757391754568,20.54,215.49,215.35,3.96608948]
[1757391754767,20.54,215.49,215.36,3.96608948]
[1757391754969,20.54,215.49,215.34,0.1996]
[1757391755164,20.54,215.49,215.35,3.96762231]
[1757391755472,20.54,215.49,215.34,0.1996]
[1757391755473,7.12,215.47,215.34,0.1996]
[1757391755964,12.35943951,215.47,215.34,0.1996]
[1757391756163,7.12,215.43,215.34,0.1996]
[1757391756665,66.4,215.42,215.34,0.1996]
[1757391756864,7.12,215.41,215.34,0.1996]
[1757391760874,7.12,215.41,215.31,0.33]
[1757391761070,7.12,215.41,215.32,3.97357198]
[1757391761274,7.12,215.41,215.33,3.97357198]
[1757391761473,7.12,215.41,215.27,0.33]
[1757391761673,7.12,215.41,215.28,3.97484265]
[1757391761874,7.12,215.41,215.29,3.97484265]
[1757391762167,58.72,215.41,215.3,3.97484265]
[1757391762364,7.12,215.41,215.31,3.97484265]
[1757391762563,7.12,215.41,215.32,3.97484265]
[1757391762767,7.12,215.41,215.33,3.97484265]
[1757391762975,7.12,215.41,215.3,0.33]
[1757391763173,7.12,215.41,215.31,3.97546839]
[1757391763468,126.52,215.41,215.32,3.97546839]
[1757391763670,7.12,215.41,215.33,3.97546839]
[1757391763872,7.12,215.41,215.3,0.33]
[1757391763873,7.12,215.41,215.34,3.97546839]
[1757391764067,7.12,215.41,215.35,3.97546839]
[1757391764268,7.12,215.41,215.36,3.97594968]
[1757391764576,7.05,215.42,215.3,0.33]
[1757391764777,7.05,215.42,215.31,3.97594565]
[1757391764976,7.05,215.42,215.32,3.97594565]
[1757391765171,7.05,215.42,215.33,3.97594565]
[1757391765372,7.05,215.42,215.34,3.97594565]
[1757391765571,7.05,215.42,215.3,0.33]
[1757391765771,7.05,215.42,215.31,3.97730086]
[1757391766073,7.05,215.42,215.3,0.33]
[1757391766074,7.05,215.42,215.32,3.97730086]
[1757391766380,7.05,215.42,215.33,3.97730086]
[1757391766576,62.73,215.42,215.34,3.97730086]
[1757391766877,62.73,215.42,215.31,0.32]
[1757391767071,62.73,215.42,215.32,3.97768055]
[1757391767272,62.73,215.42,215.33,3.97768055]
[1757391767571,62.73,215.42,215.34,3.97768055]
[1757391767870,62.73,215.42,215.31,0.32]
[1757391768072,62.73,215.42,215.32,3.97826085]
[1757391768272,62.73,215.42,215.33,3.97826085]
[1757391768474,62.73,215.42,215.34,3.97826085]
[1757391768772,62.73,215.42,215.31,0.32]
[1757391768972,7.05,215.4,215.32,3.97886]
[1757391769274,7.05,215.4,215.33,3.97886]
[1757391769578,7.05,215.4,215.34,3.97886]
[1757391769777,7.05,215.4,215.35,3.97886]
[1757391769980,7.05,215.4,215.36,3.97886]
[1757391770180,7.05,215.4,215.31,0.32]
[1757391770378,7.05,215.4,215.32,3.97797184]
[1757391770579,7.05,215.4,215.33,3.97797184]
[1757391770879,7.05,215.4,215.34,3.97797184]
[1757391771176,7.05,215.43,215.35,3.97797184]
[1757391771378,7.05,215.43,215.36,3.97797184]
[1757391771678,7.05,215.43,215.31,0.32]
[1757391771984,7.05,215.43,215.32,3.97829736]
[1757391772279,7.05,215.43,215.33,3.97829736]
[1757391772479,7.05,215.43,215.34,3.97829736]
[1757391772683,7.05,215.43,215.35,3.97829736]
[1757391772881,7.05,215.43,215.36,3.97829736]
[1757391773071,7.05,215.43,215.31,0.32]
[1757391773275,7.05,215.43,215.32,3.97926354]
[1757391773472,7.05,215.43,215.33,3.97926354]
[1757391773675,7.05,215.43,215.34,3.97926354]
[1757391773879,7.05,215.43,215.35,3.97926354]
[1757391774076,7.05,215.43,215.36,3.97926354]
[1757391774276,7.05,215.43,215.31,2.40792219]
[1757391774584,7.05,215.43,215.32,3.9800696]
[1757391774878,7.05,215.43,215.33,3.9800696]
[1757391775082,7.05,215.43,215.34,3.9800696]
[1757391775381,7.05,215.41,215.31,2.40792219]
[1757391775578,7.05,215.41,215.32,3.98153713]
[1757391775778,7.05,215.41,215.33,3.98153713]
[1757391775983,7.05,215.41,215.34,3.98153713]
[1757391776281,7.05,215.41,215.27,2.08792219]
[1757391776473,9.13792219,215.41,215.28,4.30299825]
[1757391776677,63.83792219,215.41,215.29,3.98299825]
[1757391776879,63.83792219,215.41,215.3,3.98299825]
[1757391777184,63.83792219,215.41,215.31,3.98299825]
[1757391777380,63.83792219,215.41,215.32,3.98299825]
[1757391777684,63.83792219,215.41,215.28,0.32]
[1757391777982,63.83792219,215.41,215.29,3.98305026]
[1757391778184,63.83792219,215.41,215.3,3.98305026]
[1757391778379,63.83792219,215.41,215.31,3.98305026]
[1757391778683,63.83792219,215.41,215.32,3.98305026]
[1757391778882,63.83792219,215.41,215.28,0.32]
[1757391779084,100.85792219,215.41,215.29,3.98288767]
[1757391779283,100.85792219,215.41,215.3,3.98288767]
[1757391779483,100.85792219,215.41,215.31,3.98288767]
[1757391779682,100.85792219,215.41,215.32,3.98288767]
[1757391779883,100.85792219,215.41,215.28,2.40792219]
[1757391780082,100.85792219,215.41,215.29,3.98264189]
[1757391780390,100.85792219,215.41,215.3,3.98264189]
[1757391780584,100.85792219,215.41,215.31,3.98264189]
[1757391780783,100.85792219,215.41,215.32,3.98264189]
[1757391781085,100.85792219,215.41,215.28,2.40792219]
[1757391781386,100.85792219,215.41,215.29,3.9821028]
[1757391781585,100.85792219,215.41,215.3,3.9821028]
[1757391781786,118.54,215.4,215.31,3.9821028]
[1757391781986,7.05,215.39,215.28,2.40792219]
[1757391782188,7.05,215.39,215.29,3.98182552]
[1757391782388,7.05,215.39,215.3,3.98182552]
[1757391782588,7.05,215.39,215.31,3.98182552]
[1757391782792,7.05,215.39,215.28,2.40792219]
[1757391783088,7.05,215.39,215.29,3.9816789]
[1757391783288,7.05,215.39,215.3,3.9816789]
[1757391783490,7.05,215.39,215.31,3.9816789]
[1757391783685,7.05,215.39,215.28,2.40792219]
[1757391783885,7.05,215.39,215.29,3.98127669]
[1757391784091,7.05,215.39,215.3,3.98127669]
[1757391784292,7.05,215.39,215.31,6.38919888]
[1757391784493,7.05,215.39,215.32,3.98127669]
[1757391784788,7.05,215.39,215.33,3.98127669]
[1757391784987,7.05,215.39,215.31,2.40792219]
[1757391785182,7.05,215.39,215.32,4.00863025]
[1757391785387,7.05,215.39,215.27,2.40792219]
[1757391785587,7.05,215.39,215.3,2.08792219]
[1757391785787,7.05,215.39,215.31,4.01012517]
[1757391785987,7.05,215.39,215.3,2.08792219]
[1757391785988,7.05,215.39,215.32,4.00909012]
[1757391786290,7.05,215.39,215.33,4.01031498]
[1757391786493,7.05,215.39,215.3,2.08792219]
[1757391786691,7.05,215.39,215.31,4.01036191]
[1757391786889,7.05,215.39,215.32,4.01036191]
[1757391787193,7.05,215.39,215.33,4.01036191]
[1757391787390,7.05,215.39,215.3,2.08792219]
[1757391787591,7.05,215.39,215.31,4.33161933]
[1757391787793,7.05,215.39,215.32,4.01161933]
[1757391787994,7.05,215.39,215.33,4.01161933]
[1757391788292,7.05,215.39,215.3,2.08792219]
[1757391788293,7.05,215.38,215.34,4.33161933]
[1757391788494,7.05,215.38,215.35,4.01161933]
[1757391788690,118.44,215.44,215.34,0.32]
[1757391788993,7.05,215.43,215.35,4.01236206]
[1757391789192,7.05,215.43,215.34,0.32]
[1757391789393,7.05,215.43,215.35,4.01377397]
[1757391789585,7.05,215.43,215.34,0.32]
[1757391789785,7.05,215.43,215.35,4.01432032]
[1757391789987,7.05,215.43,215.34,0.32]
[1757391790186,7.05,215.43,215.35,4.01431918]
[1757391790387,7.05,215.43,215.34,0.32]
[1757391790587,7.05,215.43,215.35,4.01522543]
[1757391790787,7.05,215.43,215.36,4.01522543]
[1757391790989,7.05,215.43,215.34,0.32]
[1757391791190,7.05,215.43,215.35,4.01542145]
[1757391791387,7.05,215.43,215.36,6.42334364]
[1757391791587,100.83,215.5,215.38,0.32]
[1757391791791,100.83,215.5,215.39,4.01542145]
[1757391792094,100.83,215.5,215.38,0.32]
[1757391792095,102.91792219,215.5,215.4,4.01542145]
[1757391792296,102.91792219,215.5,215.41,4.01542145]
[1757391792590,102.91792219,215.5,215.42,4.01542145]
[1757391792796,9.13792219,215.5,215.38,0.32]
[1757391793002,118.28,215.49,215.39,4.01298698]
[1757391793200,7.05,215.48,215.4,4.01298698]
[1757391793499,7.05,215.48,215.41,4.01298698]
[1757391793699,7.05,215.48,215.38,0.32]
[1757391793906,7.05,215.48,215.39,4.01416365]
[1757391794097,7.05,215.48,215.4,4.01416365]
[1757391794401,7.05,215.48,215.41,4.01416365]
[1757391794601,7.05,215.48,215.42,4.01416365]
[1757391794803,7.05,215.48,215.38,0.32]
[1757391795102,7.05,215.48,215.39,4.01552854]
[1757391795300,7.05,215.48,215.4,4.01552854]
[1757391795604,7.05,215.48,215.41,4.01552854]
[1757391795903,7.05,215.48,215.36,2.08792219]
[1757391796102,7.05,215.48,215.37,4.32623547]
[1757391796403,7.05,215.48,215.38,4.01623547]
[1757391796599,7.05,215.48,215.39,4.01623547]
[1757391796904,7.05,215.48,215.4,4.01623547]
[1757391797099,7.05,215.48,215.41,4.01623547]
[1757391797295,7.05,215.48,215.42,4.01623547]
[1757391797496,7.56,215.48,215.43,4.01623547]
[1757391797696,118.28,215.49,215.44,4.01623547]
[1757391797900,7.56,215.48,215.37,0.31]
[1757391798101,7.56,215.48,215.38,4.01731607]
[1757391798398,7.56,215.48,215.39,4.01731607]
[1757391798601,7.56,215.48,215.4,4.01731607]
[1757391798796,7.56,215.48,215.41,4.01731607]
[1757391798995,7.56,215.48,215.42,4.01731607]
[1757391799201,118.28,215.49,215.43,4.01731607]
[1757391799404,7.56,215.48,215.44,4.01731607]
[1757391799604,7.56,215.48,215.37,0.31]
[1757391799804,7.56,215.48,215.39,2.39792219]
[1757391800006,7.56,215.48,215.4,4.01741797]
[1757391800204,7.56,215.48,215.41,4.01741797]
[1757391800406,7.56,215.48,215.42,4.01741797]
[1757391800607,125.48,215.48,215.39,0.31]
[1757391800807,125.48,215.48,215.4,4.0169617]
[1757391801007,125.48,215.48,215.41,4.0169617]
[1757391801203,125.48,215.48,215.42,4.0169617]
[1757391801408,125.48,215.48,215.39,0.31]
[1757391801603,125.48,215.48,215.4,4.01654931]
[1757391801805,125.48,215.48,215.39,0.31]
[1757391801806,125.48,215.48,215.41,4.01654931]
[1757391802007,125.48,215.48,215.42,4.01654931]
[1757391802202,125.48,215.48,215.39,0.31]
[1757391802403,125.48,215.48,215.4,4.01623111]
[1757391802710,125.48,215.48,215.41,4.01623111]
[1757391802911,125.48,215.48,215.36,2.08792219]
[1757391803110,125.48,215.48,215.37,4.0165353]
[1757391803313,125.48,215.48,215.38,4.0165353]
[1757391803507,125.48,215.48,215.39,4.0165353]
[1757391803706,125.48,215.48,215.4,4.0165353]
[1757391803909,125.48,215.48,215.41,4.0165353]
[1757391804107,125.48,215.48,215.38,0.31]
[1757391804309,125.48,215.48,215.39,4.01582885]
[1757391804509,125.48,215.48,215.4,4.01582885]
[1757391804709,125.48,215.48,215.41,4.01582885]
[1757391805009,125.48,215.48,215.36,2.08792219]
[1757391805205,125.48,215.48,215.37,4.01620379]
[1757391805413,125.48,215.48,215.38,4.01620379]
[1757391805609,2.08792219,215.46,215.39,4.01620379]
[1757391805808,7.56,215.45,215.34,2.39792219]
[1757391806009,7.56,215.45,215.35,4.01757154]
[1757391806212,7.56,215.45,215.36,4.01757154]
[1757391806410,7.56,215.45,215.37,4.01757154]
[1757391806613,7.56,215.45,215.38,4.01757154]
[1757391806812,7.56,215.45,215.34,2.39792219]
[1757391807112,7.56,215.45,215.35,4.01875836]
[1757391807406,7.56,215.45,215.36,4.01875836]
[1757391807609,7.56,215.45,215.34,2.39792219]
[1757391807610,7.56,215.45,215.37,4.01875836]
[1757391807804,7.56,215.45,215.38,4.01875836]
[1757391808008,7.56,215.45,215.34,2.39792219]
[1757391808209,7.56,215.45,215.35,4.01867834]
[1757391808405,7.56,215.45,215.36,4.01867834]
[1757391808612,7.56,215.45,215.37,4.01867834]
[1757391808813,7.56,215.45,215.38,4.01867834]
[1757391809013,7.56,215.45,215.34,2.39792219]
[1757391809216,7.56,215.45,215.35,4.01866877]
[1757391809419,7.56,215.45,215.36,4.01866877]
[1757391809713,7.56,215.45,215.37,4.01866877]
[1757391809911,7.56,215.45,215.38,4.01866877]
[1757391810108,7.56,215.45,215.34,2.39792219]
[1757391810310,7.56,215.42,215.35,5.35523117]
[1757391810615,70.74,215.41,215.36,4.01911205]
[1757391810820,7.56,215.4,215.37,4.01911205]
[1757391811011,7.56,215.4,215.35,1.64611912]
[1757391811215,7.56,215.4,215.36,4.0198974]
[1757391811415,72.07611912,215.41,215.37,4.02008131]
[1757391811617,72.07611912,215.41,215.35,1.64611912]
[1757391811618,79.63611912,215.41,215.35,1.64611912]
[1757391811817,72.07611912,215.41,215.36,4.02008789]
[1757391812010,72.07611912,215.41,215.37,4.02008789]
[1757391812208,7.56,215.39,215.35,1.33611912]
[1757391812419,7.56,215.39,215.36,4.01997356]
[1757391812615,72.07611912,215.41,215.37,4.01997356]
[1757391812821,7.56,215.4,215.35,1.33611912]
[1757391813118,7.56,215.4,215.36,4.0199787]
[1757391813319,7.56,215.4,215.33,0.31]
[1757391813320,7.56,215.4,215.37,4.0199787]
[1757391813622,7.56,215.4,215.33,1.33611912]
[1757391813923,7.56,215.4,215.34,4.02142393]
[1757391814127,72.07611912,215.41,215.35,4.02142393]
[1757391814425,7.56,215.4,215.33,1.33611912]
[1757391814624,1.33611912,215.35,215.28,0.31]
[1757391814923,8.89611912,215.35,215.29,4.0238921]
[1757391815123,1.33611912,215.35,215.3,4.0238921]
[1757391815323,7.56,215.34,215.31,4.0238921]
[1757391815623,7.56,215.31,215.25,0.18991]
[1757391815817,7.56,215.29,215.26,4.02407044]
[1757391816015,7.56,215.29,215.25,0.18991]
[1757391816223,7.56,215.27,215.25,0.18991]
[1757391816824,8.89611912,215.26,215.14,1.33611912]
[1757391817025,1.33611912,215.2,215.15,4.51575369]
[1757391817223,7.56,215.19,215.16,4.02575369]
[1757391817424,7.56,215.19,215.15,0.49]
[1757391817622,7.56,215.19,215.16,4.02067473]
[1757391817829,7.56,215.19,215.15,0.49]
[1757391818029,7.56,215.19,215.16,4.02068131]
[1757391818224,5.18454973,215.3,215.11,0.49]
[1757391818225,7.56,215.24,215.11,0.49]
[1757391818530,1.33611912,215.22,215.15,1.33611912]
[1757391818730,1.33611912,215.22,215.16,4.01611947]
[1757391818927,1.33611912,215.22,215.15,1.33611912]
[1757391819123,1.33611912,215.22,215.16,4.01538133]
[1757391819320,1.33611912,215.22,215.15,1.33611912]
[1757391819525,1.33611912,215.22,215.16,4.01193684]
[1757391819826,1.33611912,215.2,215.14,0.49]
[1757391820027,1.33611912,215.2,215.15,4.50208336]
[1757391820221,1.33611912,215.2,215.12,1.82611912]
[1757391820430,1.33611912,215.2,215.13,4.00919338]
[1757391820628,1.33611912,215.2,215.14,4.00919338]
[1757391820828,8.89611912,215.2,215.15,4.00919338]
[1757391821028,8.89611912,215.2,215.16,4.00919338]
[1757391821229,7.56,215.19,215.12,1.82611912]
[1757391821425,7.56,215.19,215.13,4.00663493]
[1757391821730,7.56,215.19,215.14,4.52663493]
[1757391822029,7.56,215.19,215.15,4.00663493]
[1757391822227,7.56,215.19,215.12,1.33611912]
[1757391822421,7.56,215.19,215.13,4.00433027]
[1757391822628,8.89611912,215.18,215.14,4.00433027]
[1757391822931,8.89611912,215.18,215.11,0.52]
[1757391823132,8.89611912,215.18,215.12,4.00463316]
[1757391823426,7.63,215.17,215.11,0.52]
[1757391824227,8.96611912,215.23,215.14,1.33611912]
[1757391824425,1.33611912,215.26,215.18,1.33611912]
[1757391825529,7.63,215.27,215.18,1.33611912]
[1757391825834,7.63,215.31,215.23,1.33611912]
[1757391826233,1.33611912,215.3,215.23,1.33611912]
[1757391826428,1.33611912,215.26,215.18,1.33611912]
[1757391826633,1.33611912,215.26,215.19,3.99611445]
[1757391826829,1.33611912,215.26,215.17,0.52]
[1757391827030,1.33611912,215.24,215.18,3.99612753]
[1757391827230,1.33611912,215.24,215.17,1.85611912]
[1757391827433,1.33611912,215.24,215.18,3.99570549]
[1757391827635,1.33611912,215.24,215.17,1.85611912]
[1757391827934,1.33611912,215.24,215.18,3.99569894]
[1757391828134,1.33611912,215.24,215.17,1.85611912]
[1757391828334,1.33611912,215.24,215.18,3.99487897]
[1757391828534,1.33611912,215.24,215.17,1.85611912]
[1757391828732,1.33611912,215.24,215.18,3.99487753]
[1757391828934,1.33611912,215.24,215.17,1.85611912]
[1757391829936,1.33611912,215.24,215.18,3.99371216]
[1757391830133,1.33611912,215.24,215.19,3.99371216]
[1757391830333,8.96611912,215.24,215.19,0.52]
[1757391830537,7.63,215.23,215.19,0.52]
[1757391830736,1.33611912,215.24,215.2,0.52]
[1757391830934,1.33611912,215.26,215.2,0.52]
[1757391831929,1.33611912,215.26,215.17,1.33611912]
[1757391832131,1.33611912,215.24,215.17,1.33611912]
[1757391834740,7.63,215.25,215.19,1.85611912]
[1757391835235,7.63,215.25,215.19,0.52]
[1757391835538,8.96611912,215.24,215.19,0.52]
[1757391836137,7.63,215.24,215.19,0.52]
[1757391838443,7.63,215.25,215.19,0.52]
[1757391843352,7.63,215.25,215.18,1.33611912]
[1757391843551,7.63,215.25,215.19,3.99254534]
[1757391843752,7.63,215.25,215.18,1.33611912]
[1757391843953,7.63,215.25,215.19,3.99273877]
[1757391844149,7.63,215.25,215.18,1.33611912]
[1757391844456,7.63,215.25,215.19,3.99043513]
[1757391844756,7.63,215.25,215.18,1.33611912]
[1757391844955,7.63,215.25,215.19,3.99081775]
[1757391845152,7.63,215.25,215.18,1.33611912]
[1757391845353,7.63,215.26,215.2,1.33611912]
[1757391848152,1.33611912,215.27,215.21,3.99706914]
[1757391848455,7.63,215.26,215.2,1.33611912]
[1757391848655,7.63,215.26,215.21,3.99748764]
[1757391848955,7.63,215.25,215.2,1.33611912]
[1757391849157,7.63,215.25,215.21,3.99749051]
[1757391849353,7.63,215.25,215.2,1.33611912]
[1757391849553,7.63,215.25,215.21,3.99956494]
[1757391849753,1.33611912,215.26,215.2,1.33611912]
[1757391849951,1.33611912,215.26,215.21,3.99956206]
[1757391850158,1.33611912,215.26,215.22,4.00133078]
[1757391850461,7.63,215.25,215.2,1.33611912]
[1757391850659,1.33611912,215.26,215.21,4.00173174]
[1757391850957,7.63,215.23,215.16,0.52]
[1757391851149,13.4,215.3,215.17,4.0018252]
[1757391851150,7.63,215.21,215.17,4.0018252]
[1757391851352,13.4,215.3,215.18,4.0018252]
[1757391851560,7.63,215.2,215.19,4.0018252]
[1757391854264,7.63,215.2,215.19,4.00586443]
[1757391856664,8.96611912,215.2,215.19,4.00586443]
[1757391857661,7.63,215.2,215.11,1.33611912]
[1757391857862,1.33611912,215.18,215.12,4.01992194]
[1757391858071,7.65,215.17,215.13,4.01992194]
[1757391858366,7.65,215.17,215.14,4.01992194]
[1757391858668,7.65,215.17,215.15,4.01992194]
[1757391858965,7.65,215.17,215.11,1.33611912]
[1757391858966,7.65,215.17,215.16,4.01992194]
[1757391861557,7.65,215.17,215.09,0.51]
[1757391861761,8.98611912,215.14,215.09,0.51]
[1757391861958,7.65,215.13,215.09,0.51]
[1757391862668,1.33611912,215.14,215.09,4.53]
[1757391862866,1.33611912,215.14,215.08,1.33611912]
[1757391863070,1.33611912,215.14,215.08,5.86611912]
[1757391863570,1.33611912,215.15,215.08,5.86611912]
[1757391864071,1.33611912,215.15,215.08,4.53]
[1757391864466,1.33611912,215.15,215.08,5.86611912]
[1757391865973,8.98611912,215.15,215.08,5.86611912]
[1757391866169,1.33611912,215.16,215.09,4.53]
[1757391866370,1.33611912,215.18,215.11,4.53]
[1757391866666,7.65,215.2,215.14,5.86611912]
[1757391867967,8.98611912,215.24,215.18,1.33611912]
[1757391868264,1.33611912,215.19,215.11,3.81932883]
[1757391868469,7.65,215.11,215.04,5.86611912]
[1757391868676,1.33611912,215.1,215.04,5.86611912]
[1757391868878,7.65,215.11,215.06,1.33611912]
[1757391869178,7.65,215.11,215.06,5.86611912]
[1757391869773,7.65,215.1,215.03,4.53]
[1757391869980,1.33611912,215.09,215.03,4.53]
[1757391870375,7.65,215.1,215.03,4.53]
[1757391871767,2.09369084,215.13,215.03,4.53]
[1757391873575,7.65,215.14,215.03,4.53]
[1757391873779,9.74369084,215.14,215.03,4.53]
[1757391875371,7.65,215.14,215.03,4.53]
[1757391875575,9.74369084,215.14,215.03,4.53]
[1757391876783,9.74369084,215.11,215.03,4.53]
[1757391880179,2.09369084,215.16,215.04,2.09369084]
[1757391880383,9.74369084,215.16,215.05,4.53]
[1757391885782,2.09369084,215.13,215.05,4.53]
[1757391886086,7.16,215.12,215.05,4.53]
[1757391887087,2.09369084,215.18,215.05,4.53]
[1757391887289,7.16,215.17,215.05,4.53]
[1757391887484,2.09369084,215.24,215.11,4.53]
[1757391887688,7.16,215.25,215.11,4.53]
[1757391887893,7.16,215.25,215.16,4.53]
[1757391888087,9.25369084,215.25,215.16,4.53]
[1757391888390,9.25369084,215.25,215.12,2.09369084]
[1757391888584,9.25369084,215.25,215.12,6.62369084]
[1757391889581,2.09369084,215.22,215.12,4.53]
[1757391889789,7.16,215.21,215.12,4.53]
[1757391894097,9.25369084,215.21,215.12,4.53]
[1757391899701,9.25369084,215.21,215.07,4.53]
[1757391899900,9.25369084,215.21,215.07,6.62369084]
[1757391900300,2.09369084,215.18,215.07,6.62369084]
[1757391900500,7.16,215.17,215.07,6.62369084]
[1757391901394,7.16,215.17,215.03,3.81932883]